bitfinex-derivatives/quotes_BNBF0:USTF0_20250220
["timestamp","ask_amount","ask_price","bid_price","bid_amount"]
[1740091261579,2.91870944,656.37,655.36,0.30517578]
[1740091261780,2.91870944,656.36,655.36,0.30517578]
[1740091261975,2.14375307,656.4,655.36,0.30517578]
[1740091262478,2.92014812,656.39,655.37,1.12221098]
[1740091262685,2.14375307,656.39,655.39,0.30516181]
[1740091262883,2.92023646,656.38,655.39,0.30516181]
[1740091263076,2.92023646,656.37,655.39,0.30516181]
[1740091263281,2.14375307,656.39,655.39,0.30516181]
[1740091263483,2.92025681,656.38,655.39,0.30516181]
[1740091263683,2.92025681,656.37,655.39,0.30516181]
[1740091263978,2.92025681,656.36,655.39,0.30516181]
[1740091264185,2.92025681,656.35,655.39,0.30516181]
[1740091264384,2.14375307,656.36,655.39,0.30516181]
[1740091264884,2.92037088,656.35,655.51,1.12221098]
[1740091265085,2.14375307,656.36,655.53,0.30509663]
[1740091265583,0.676,656.5,655.53,0.30509663]
[1740091266184,2.14426751,656.49,655.53,0.30509663]
[1740091267883,2.14426751,656.48,655.53,0.30509663]
[1740091269390,2.14426751,656.47,655.53,0.30509663]
[1740091271087,2.14426751,656.46,655.53,0.30509663]
[1740091272790,2.14426751,656.45,655.53,0.30509663]
[1740091273094,3.40026751,656.45,655.53,0.30509663]
[1740091274289,1.256,656.45,655.53,0.30509663]
[1740091279688,2.14489659,656.44,655.53,0.30509663]
[1740091281593,2.14489659,656.43,655.53,0.30509663]
[1740091282495,2.92370256,656.42,655.53,0.30509663]
[1740091282695,2.92370256,656.41,655.53,0.30509663]
[1740091282990,5.06859915,656.4,655.53,0.30509663]
[1740091283194,2.92370256,656.39,655.53,0.30509663]
[1740091283391,2.92370256,656.38,655.53,0.30509663]
[1740091283696,2.14489659,656.4,655.53,0.30509663]
[1740091283998,2.92493745,656.39,655.53,0.30509663]
[1740091284196,2.92493745,656.38,655.53,0.30509663]
[1740091284396,2.92493745,656.37,655.53,0.30509663]
[1740091284597,2.92493745,656.36,655.53,0.30509663]
[1740091284794,2.92493745,656.35,655.53,0.30509663]
[1740091284993,2.92493745,656.34,655.53,0.30509663]
[1740091285192,2.92493745,656.33,655.53,0.30509663]
[1740091285391,2.92493745,656.32,655.53,0.30509663]
[1740091285593,2.92493745,656.31,655.53,0.30509663]
[1740091285797,2.92493745,656.3,655.53,0.30509663]
[1740091285997,2.92493745,656.29,655.53,0.30509663]
[1740091286197,2.14489659,656.3,655.53,0.30509663]
[1740091286198,2.92493745,656.28,655.53,0.30509663]
[1740091286398,2.92493745,656.27,655.53,0.30509663]
[1740091286694,2.92493745,656.26,655.53,0.30509663]
[1740091286898,2.92493745,656.25,655.53,0.30509663]
[1740091287099,2.92493745,656.24,655.53,0.30509663]
[1740091287298,2.92493745,656.23,655.53,0.30509663]
[1740091287493,2.92493745,656.22,655.53,0.30509663]
[1740091287698,2.92493745,656.21,655.53,0.30509663]
[1740091287899,2.92493745,656.2,655.53,0.30509663]
[1740091288101,2.92493745,656.19,655.53,0.30509663]
[1740091288399,1.65,656.4,655.53,0.30509663]
[1740091288595,2.93204807,656.39,655.53,0.30509663]
[1740091288800,2.93204807,656.38,655.53,0.30509663]
[1740091289094,2.93204807,656.37,655.53,0.30509663]
[1740091289300,2.93204807,656.36,655.53,0.30509663]
[1740091289494,2.93204807,656.35,655.53,0.30509663]
[1740091289696,2.93204807,656.34,655.53,0.30509663]
[1740091289999,2.93204807,656.33,655.53,0.30509663]
[1740091290300,2.93204807,656.32,655.53,0.30509663]
[1740091290499,2.15271532,656.39,655.53,0.30509663]
[1740091290500,2.93204807,656.31,655.53,0.30509663]
[1740091290799,2.93204807,656.3,655.53,0.30509663]
[1740091290999,2.93204807,656.29,655.53,0.30509663]
[1740091291200,2.93204807,656.28,655.53,0.30509663]
[1740091291400,2.93204807,656.27,655.53,0.30509663]
[1740091291600,2.93204807,656.26,655.53,0.30509663]
[1740091291799,2.93204807,656.25,655.53,0.30509663]
[1740091292000,2.93204807,656.24,655.53,0.30509663]
[1740091292202,2.15271532,656.3,655.53,0.30509663]
[1740091292203,2.93204807,656.23,655.53,0.30509663]
[1740091292398,2.93204807,656.22,655.53,0.30509663]
[1740091292701,2.93204807,656.21,655.53,0.30509663]
[1740091292901,2.15271532,656.21,655.53,0.30509663]
[1740091294002,2.93679263,656.2,655.53,0.30509663]
[1740091294200,2.15271532,656.21,655.53,0.30509663]
[1740091294401,1.65,656.4,655.53,0.30509663]
[1740091294701,2.93674692,656.39,655.53,0.30509663]
[1740091294900,2.93674692,656.38,655.53,0.30509663]
[1740091295100,2.93674692,656.37,655.53,0.30509663]
[1740091295300,2.93674692,656.36,655.53,0.30509663]
[1740091295603,2.93674692,656.35,655.53,0.30509663]
[1740091295804,2.93674692,656.34,655.53,0.30509663]
[1740091296003,2.93674692,656.33,655.53,0.30509663]
[1740091296207,2.93674692,656.32,655.53,0.30509663]
[1740091296403,2.93674692,656.31,655.53,0.30509663]
[1740091296604,2.93674692,656.3,655.62,1.12221098]
[1740091296808,2.93674692,656.29,655.63,0.3050501]
[1740091297104,2.93674692,656.28,655.63,0.3050501]
[1740091297303,2.93674692,656.27,655.63,0.3050501]
[1740091297505,2.93674692,656.26,655.63,0.3050501]
[1740091297703,2.93674692,656.25,655.63,0.3050501]
[1740091297902,2.93674692,656.24,655.63,0.3050501]
[1740091298102,2.93674692,656.23,655.63,0.3050501]
[1740091298302,2.93674692,656.22,655.63,0.3050501]
[1740091298602,2.93674692,656.21,655.63,0.3050501]
[1740091298904,2.15615747,656.24,655.63,0.3050501]
[1740091299105,2.93692744,656.23,655.68,1.12221098]
[1740091299307,2.93692744,656.22,655.69,0.30502219]
[1740091299503,2.93692744,656.21,655.69,0.30502219]
[1740091299699,2.15615747,656.24,655.69,0.30502219]
[1740091299899,2.15615747,656.21,655.69,0.30502219]
[1740091300499,2.93702214,656.2,655.69,0.30502219]
[1740091300703,2.15615747,656.21,655.69,0.30502219]
[1740091300907,2.93704803,656.2,655.69,0.30502219]
[1740091301106,2.15615747,656.21,655.69,0.30502219]
[1740091301301,2.93706769,656.2,655.69,0.30502219]
[1740091301507,2.15615747,656.21,655.69,0.30502219]
[1740091301707,1.65,656.4,655.69,0.30502219]
[1740091301708,2.93703596,656.2,655.69,0.30502219]
[1740091302008,1.65,656.4,655.69,0.30502219]
[1740091302211,2.93699326,656.39,655.69,0.30502219]
[1740091302409,2.93699326,656.38,655.69,0.30502219]
[1740091302707,5.09334938,656.37,655.69,0.30502219]
[1740091302908,2.93699326,656.36,655.69,0.30502219]
[1740091303108,2.93699326,656.35,655.69,0.30502219]
[1740091303308,2.93699326,656.34,655.69,0.30502219]
[1740091303508,2.93699326,656.33,655.69,0.30502219]
[1740091303708,2.93699326,656.32,655.69,0.30502219]
[1740091303905,2.93699326,656.31,655.69,0.30502219]
[1740091304110,2.93699326,656.3,655.69,0.30502219]
[1740091304304,2.93699326,656.29,655.69,0.30502219]
[1740091304504,2.93699326,656.28,655.69,0.30502219]
[1740091304810,2.93699326,656.27,655.69,0.30502219]
[1740091305004,2.93699326,656.26,655.69,0.30502219]
[1740091305204,2.93699326,656.25,655.69,0.30502219]
[1740091305408,2.93699326,656.24,655.69,0.30502219]
[1740091305605,2.93699326,656.23,655.69,0.30502219]
[1740091305806,2.93699326,656.22,655.69,0.30502219]
[1740091306007,2.93699326,656.21,655.69,0.30502219]
[1740091306211,2.15635612,656.28,655.69,0.30502219]
[1740091306508,2.93708503,656.27,655.69,0.30502219]
[1740091306713,2.93708503,656.26,655.69,0.30502219]
[1740091306912,2.93708503,656.25,655.69,0.30502219]
[1740091307105,2.93708503,656.24,655.69,0.30502219]
[1740091307306,2.93708503,656.23,655.69,0.30502219]
[1740091307513,2.93708503,656.22,655.69,0.30502219]
[1740091307713,2.93708503,656.21,655.69,0.30502219]
[1740091307913,2.15644376,656.24,655.69,0.30502219]
[1740091308108,2.93701942,656.23,655.69,0.30502219]
[1740091308312,2.93701942,656.22,655.69,0.30502219]
[1740091308511,2.93701942,656.21,655.69,0.30502219]
[1740091308713,2.15644376,656.21,655.69,0.30502219]
[1740091310216,1.961,656.42,655.69,0.30502219]
[1740091310416,2.93701622,656.41,655.69,0.30502219]
[1740091310610,2.93701622,656.4,655.69,0.30502219]
[1740091310816,2.93701622,656.39,655.69,0.30502219]
[1740091311013,2.93701622,656.38,655.69,0.30502219]
[1740091311216,2.93701622,656.37,655.69,0.30502219]
[1740091311411,2.93701622,656.36,655.69,0.30502219]
[1740091311616,2.93701622,656.35,655.69,0.30502219]
[1740091311816,2.93701622,656.34,655.69,0.30502219]
[1740091312114,2.93701622,656.33,655.69,0.30502219]
[1740091312319,2.93701622,656.32,655.69,0.30502219]
[1740091312519,2.93701622,656.31,655.69,0.30502219]
[1740091312718,2.1563508,656.33,655.69,0.30502219]
[1740091312719,2.93701622,656.3,655.69,0.30502219]
[1740091312915,2.93701622,656.29,655.69,0.30502219]
[1740091313116,2.93701622,656.28,655.69,0.30502219]
[1740091313319,2.93701622,656.27,655.69,0.30502219]
[1740091313521,2.93701622,656.26,655.69,0.30502219]
[1740091313720,2.1563508,656.33,655.69,0.30502219]
[1740091313721,2.93701622,656.25,655.69,0.30502219]
[1740091314023,2.93701622,656.24,655.69,0.30502219]
[1740091314223,2.93701622,656.23,655.69,0.30502219]
[1740091314516,2.93701622,656.22,655.69,0.30502219]
[1740091314720,2.93701622,656.21,655.69,0.30502219]
[1740091314915,2.1563508,656.24,655.69,0.30502219]
[1740091315118,2.9371285,656.23,655.69,0.30502219]
[1740091315318,2.9371285,656.22,655.69,0.30502219]
[1740091315515,2.9371285,656.21,655.69,0.30502219]
[1740091315715,2.1563508,656.24,655.69,0.30502219]
[1740091315921,2.93727292,656.23,655.69,0.30502219]
[1740091316119,2.93727292,656.22,655.69,0.30502219]
[1740091316315,2.1563508,656.23,655.69,0.30502219]
[1740091316515,2.93741379,656.22,655.69,0.30502219]
[1740091316721,2.1563508,656.23,655.69,0.30502219]
[1740091317325,1.961,656.42,655.69,0.30502219]
[1740091317516,2.9375353,656.41,655.69,0.30502219]
[1740091317720,5.09422738,656.4,655.69,0.30502219]
[1740091317922,2.9375353,656.39,655.69,0.30502219]
[1740091318126,2.9375353,656.38,655.69,0.30502219]
[1740091318326,2.9375353,656.37,655.69,0.30502219]
[1740091318625,2.9375353,656.36,655.69,0.30502219]
[1740091318826,2.9375353,656.35,655.69,0.30502219]
[1740091319024,2.9375353,656.34,655.69,0.30502219]
[1740091319225,2.15669208,656.4,655.69,0.30502219]
[1740091319226,2.9375353,656.33,655.69,0.30502219]
[1740091319424,2.9375353,656.32,655.69,0.30502219]
[1740091319624,2.9375353,656.31,655.69,0.30502219]
[1740091319825,2.9375353,656.3,655.69,0.30502219]
[1740091320128,2.9375353,656.29,655.69,0.30502219]
[1740091320326,2.9375353,656.28,655.69,0.30502219]
[1740091320523,2.9375353,656.27,655.69,0.30502219]
[1740091320722,2.9375353,656.26,655.71,1.12221098]
[1740091320919,2.9375353,656.25,655.72,0.30500823]
[1740091321125,2.9375353,656.24,655.72,0.30500823]
[1740091321324,2.9375353,656.23,655.72,0.30500823]
[1740091321526,2.9375353,656.22,655.72,0.30500823]
[1740091321824,2.15669208,656.23,655.72,0.30500823]
[1740091322020,2.93869497,656.22,655.72,0.30500823]
[1740091322223,2.93869497,656.21,655.72,0.30500823]
[1740091322423,2.15669208,656.23,655.72,0.30500823]
[1740091322619,2.93918906,656.22,655.72,0.30500823]
[1740091322823,2.93918906,656.21,655.72,0.30500823]
[1740091323125,2.15669208,656.21,655.72,0.30500823]
[1740091324520,1.961,656.42,655.72,0.30500823]
[1740091324722,2.93979992,656.41,655.72,0.30500823]
[1740091324922,2.93979992,656.4,655.72,0.30500823]
[1740091325224,2.93979992,656.39,655.72,0.30500823]
[1740091325418,2.93979992,656.38,655.72,0.30500823]
[1740091325622,2.93979992,656.37,655.72,0.30500823]
[1740091325919,2.93979992,656.36,655.72,0.30500823]
[1740091326125,2.15835952,656.4,655.72,0.30500823]
[1740091326325,2.93977503,656.39,655.72,0.30500823]
[1740091326527,2.15835952,656.4,655.72,0.30500823]
[1740091327219,2.15835952,656.39,655.72,0.30500823]
[1740091327728,2.93988352,656.38,655.72,0.30500823]
[1740091327927,2.15835952,656.39,655.72,0.30500823]
[1740091329332,2.15835952,656.38,655.72,0.30500823]
[1740091329928,2.9398992,656.37,655.72,0.30500823]
[1740091330130,2.9398992,656.36,655.72,0.30500823]
[1740091330327,2.9398992,656.35,655.72,0.30500823]
[1740091330531,2.9398992,656.34,655.72,0.30500823]
[1740091330732,2.9398992,656.33,655.72,0.30500823]
[1740091330929,2.15835952,656.38,655.72,0.30500823]
[1740091331134,2.93996887,656.37,655.72,0.30500823]
[1740091331334,2.15835952,656.32,655.72,0.30500823]
[1740091332828,2.15835952,656.31,655.72,0.30500823]
[1740091334335,2.94004578,656.3,655.72,0.30500823]
[1740091334531,2.94004578,656.29,655.72,0.30500823]
[1740091334734,2.94004578,656.28,655.72,0.30500823]
[1740091334934,2.94004578,656.27,655.72,0.30500823]
[1740091335136,2.94004578,656.26,655.72,0.30500823]
[1740091335432,2.94004578,656.25,655.72,0.30500823]
[1740091335638,2.94004578,656.24,655.72,0.30500823]
[1740091335838,2.94004578,656.23,655.72,0.30500823]
[1740091336132,2.15835952,656.23,655.72,0.30500823]
[1740091337736,1.596,656.41,655.72,0.30500823]
[1740091337938,2.94056329,656.4,655.72,0.30500823]
[1740091338140,2.94056329,656.39,655.72,0.30500823]
[1740091338337,2.94056329,656.38,655.72,0.30500823]
[1740091338539,2.94056329,656.37,655.72,0.30500823]
[1740091338739,2.15906338,656.39,655.72,0.30500823]
[1740091338740,2.94056329,656.36,655.72,0.30500823]
[1740091338940,2.94056329,656.35,655.72,0.30500823]
[1740091339139,2.94056329,656.34,655.72,0.30500823]
[1740091339437,2.94056329,656.33,655.72,0.30500823]
[1740091339641,2.94056329,656.32,655.72,0.30500823]
[1740091339940,2.94056329,656.31,655.72,0.30500823]
[1740091340141,2.94056329,656.3,655.72,0.30500823]
[1740091340343,2.94056329,656.29,655.72,0.30500823]
[1740091340542,2.94056329,656.28,655.72,0.30500823]
[1740091340736,2.94056329,656.27,655.72,0.30500823]
[1740091340936,2.94056329,656.26,655.72,0.30500823]
[1740091341142,2.94056329,656.25,655.72,0.30500823]
[1740091341343,1.596,656.41,655.72,0.30500823]
[1740091341543,2.94135856,656.4,655.72,0.30500823]
[1740091341743,2.94135856,656.39,655.72,0.30500823]
[1740091342045,2.94135856,656.38,655.72,0.30500823]
[1740091342237,2.94135856,656.37,655.72,0.30500823]
[1740091342442,2.94135856,656.36,655.72,0.30500823]
[1740091342642,2.94135856,656.35,655.72,0.30500823]
[1740091342842,2.94135856,656.34,655.72,0.30500823]
[1740091343137,2.94135856,656.33,655.72,0.30500823]
[1740091343342,2.94135856,656.32,655.72,0.30500823]
[1740091343538,2.94135856,656.31,655.72,0.30500823]
[1740091343737,2.94135856,656.3,655.72,0.30500823]
[1740091344044,2.94135856,656.29,655.72,0.30500823]
[1740091344246,2.15947884,656.32,655.72,0.30500823]
[1740091344447,2.94091106,656.31,655.72,0.30500823]
[1740091344746,2.94091106,656.3,655.72,0.30500823]
[1740091344948,2.94091106,656.29,655.72,0.30500823]
[1740091345141,1.874,656.42,655.72,0.30500823]
[1740091345343,2.94087965,656.41,655.72,0.30500823]
[1740091345541,2.94087965,656.4,655.72,0.30500823]
[1740091345743,2.94087965,656.39,655.72,0.30500823]
[1740091345945,2.94087965,656.38,655.72,0.30500823]
[1740091346140,2.94087965,656.37,655.72,0.30500823]
[1740091346343,2.94087965,656.36,655.72,0.30500823]
[1740091346546,2.94087965,656.35,655.72,0.30500823]
[1740091346746,2.94087965,656.34,655.72,0.30500823]
[1740091346942,2.94087965,656.33,655.72,0.30500823]
[1740091347251,5.09976763,656.32,655.72,0.30500823]
[1740091347450,2.94087965,656.31,655.72,0.30500823]
[1740091347749,2.15888798,656.32,655.72,0.30500823]
[1740091348044,1.874,656.42,655.72,0.30500823]
[1740091348250,3.811,656.6,655.72,0.30500823]
[1740091348649,1.636,656.6,655.72,0.30500823]
[1740091349152,13.90518917,661.31,655.72,0.30500823]
[1740091349652,4.28418713,661.31,655.72,0.30500823]
[1740091350047,4.28418713,661.31,655.88,1.12221098]
[1740091350048,1.12976446,657.7,655.88,1.12221098]
[1740091350347,1.12976446,657.7,655.9,0.30492453]
[1740091350946,2.14747883,657.69,655.9,0.30492453]
[1740091351346,6.337,657.68,655.9,0.30492453]
[1740091351854,2.211,657.67,655.9,0.30492453]
[1740091353055,2.14747883,657.66,655.9,0.30492453]
[1740091354550,1.704,657.65,655.9,0.30492453]
[1740091356156,2.14020823,657.64,655.9,0.30492453]
[1740091357458,1.704,657.65,655.9,0.30492453]
[1740091357956,2.91355003,657.64,655.9,0.30492453]
[1740091358157,2.91355003,657.63,655.9,0.30492453]
[1740091358359,2.91355003,657.62,655.9,0.30492453]
[1740091358550,2.91355003,657.61,655.9,0.30492453]
[1740091358857,2.91355003,657.6,655.9,0.30492453]
[1740091359057,2.91355003,657.59,655.9,0.30492453]
[1740091359258,2.91355003,657.58,655.9,0.30492453]
[1740091359456,2.91355003,657.57,655.9,0.30492453]
[1740091359657,2.91355003,657.56,655.9,0.30492453]
[1740091359857,2.91355003,657.55,655.9,0.30492453]
[1740091360058,2.91355003,657.54,655.9,0.30492453]
[1740091360252,2.91355003,657.53,655.9,0.30492453]
[1740091360455,2.91355003,657.52,655.9,0.30492453]
[1740091360654,2.91355003,657.51,655.9,0.30492453]
[1740091360860,2.91355003,657.5,655.9,0.30492453]
[1740091361160,2.91355003,657.49,655.9,0.30492453]
[1740091361352,2.1383651,657.55,655.9,0.30492453]
[1740091361353,2.91355003,657.48,655.9,0.30492453]
[1740091361562,2.91355003,657.47,655.9,0.30492453]
[1740091361753,2.91355003,657.46,655.9,0.30492453]
[1740091361955,2.91355003,657.45,655.9,0.30492453]
[1740091362155,2.91355003,657.44,655.9,0.30492453]
[1740091362361,2.91355003,657.43,655.9,0.30492453]
[1740091362557,2.91355003,657.42,655.9,0.30492453]
[1740091362756,2.91355003,657.41,655.9,0.30492453]
[1740091362960,2.1383651,657.48,655.9,0.30492453]
[1740091362961,2.91355003,657.4,655.9,0.30492453]
[1740091363160,2.91355003,657.39,655.9,0.30492453]
[1740091363360,2.91355003,657.38,655.9,0.30492453]
[1740091363561,2.91355003,657.37,655.9,0.30492453]
[1740091363756,2.91355003,657.36,655.9,0.30492453]
[1740091363962,2.91355003,657.35,655.9,0.30492453]
[1740091364161,2.91355003,657.34,655.9,0.30492453]
[1740091364360,2.91355003,657.33,655.9,0.30492453]
[1740091364558,2.91355003,657.32,655.9,0.30492453]
[1740091364762,2.91355003,657.31,655.9,0.30492453]
[1740091364962,2.91355003,657.3,655.9,0.30492453]
[1740091365164,2.91355003,657.29,655.9,0.30492453]
[1740091365457,2.1383651,657.37,655.9,0.30492453]
[1740091365458,2.91355003,657.28,655.9,0.30492453]
[1740091365662,2.91355003,657.27,655.9,0.30492453]
[1740091365966,2.91355003,657.26,655.9,0.30492453]
[1740091366263,2.91355003,657.25,655.9,0.30492453]
[1740091366463,2.91355003,657.24,655.9,0.30492453]
[1740091366664,2.1383651,657.27,655.9,0.30492453]
[1740091366665,2.91355003,657.23,655.9,0.30492453]
[1740091366964,2.1383651,657.27,655.9,0.30492453]
[1740091366965,2.91355003,657.22,655.9,0.30492453]
[1740091367159,2.91355003,657.21,655.9,0.30492453]
[1740091367360,2.91355003,657.2,655.9,0.30492453]
[1740091367558,2.1383651,657.27,655.9,0.30492453]
[1740091367559,2.91355003,657.19,655.9,0.30492453]
[1740091367760,2.91355003,657.18,655.9,0.30492453]
[1740091367967,2.91355003,657.17,655.9,0.30492453]
[1740091368265,2.91355003,657.16,655.9,0.30492453]
[1740091368467,2.91355003,657.15,655.9,0.30492453]
[1740091368767,2.91355003,657.14,655.9,0.30492453]
[1740091369065,2.91355003,657.13,655.9,0.30492453]
[1740091369367,2.91355003,657.12,655.9,0.30492453]
[1740091369667,2.91355003,657.11,655.9,0.30492453]
[1740091369860,2.91355003,657.1,655.9,0.30492453]
[1740091370064,2.1383651,657.14,655.9,0.30492453]
[1740091370065,2.91355003,657.09,655.9,0.30492453]
[1740091370266,2.91355003,657.08,655.9,0.30492453]
[1740091370565,2.91355003,657.07,655.9,0.30492453]
[1740091370867,2.91355003,657.06,655.9,0.30492453]
[1740091371066,2.91355003,657.05,655.9,0.30492453]
[1740091371362,2.1383651,657.07,655.9,0.30492453]
[1740091371363,2.91355003,657.04,655.9,0.30492453]
[1740091371566,2.91355003,657.03,655.9,0.30492453]
[1740091371767,2.91355003,657.02,655.9,0.30492453]
[1740091371962,2.91355003,657.01,655.9,0.30492453]
[1740091372166,2.91355003,657.0,655.9,0.30492453]
[1740091372368,2.91355003,656.99,655.9,0.30492453]
[1740091372565,2.91355003,656.98,655.9,0.30492453]
[1740091372766,2.91355003,656.97,655.9,0.30492453]
[1740091373064,2.91355003,656.96,655.9,0.30492453]
[1740091373265,2.91355003,656.95,655.9,0.30492453]
[1740091373465,2.91355003,656.94,655.9,0.30492453]
[1740091373664,2.91355003,656.93,655.9,0.30492453]
[1740091373865,2.1383651,656.99,655.9,0.30492453]
[1740091374067,2.1383651,656.92,655.9,0.30492453]
[1740091374665,2.90839945,656.91,655.9,0.30492453]
[1740091374861,2.90839945,656.9,655.9,0.30492453]
[1740091375061,2.90839945,656.89,655.9,0.30492453]
[1740091375268,2.1383651,656.92,655.9,0.30492453]
[1740091375468,2.90850585,656.91,655.9,0.30492453]
[1740091375668,2.90847359,656.9,655.9,0.30492453]
[1740091375870,3.8633651,656.9,655.9,0.30492453]
[1740091376971,1.892,656.89,655.9,0.30492453]
[1740091378072,2.1383651,656.88,655.9,0.30492453]
[1740091378972,2.9086478,656.87,655.9,0.30492453]
[1740091379271,2.9086478,656.86,655.9,0.30492453]
[1740091379472,2.9086478,656.85,655.9,0.30492453]
[1740091379673,2.90880343,656.84,655.9,0.30492453]
[1740091379874,2.90880343,656.83,655.9,0.30492453]
[1740091380170,2.90880343,656.82,655.9,0.30492453]
[1740091380373,2.90880343,656.81,655.9,0.30492453]
[1740091380567,2.1383651,656.84,655.9,0.30492453]
[1740091381374,2.1383651,656.83,655.9,0.30492453]
[1740091382874,2.1383651,656.82,655.9,0.30492453]
[1740091384372,2.1383651,656.81,655.9,0.30492453]
[1740091385576,2.1383651,656.81,655.96,1.12221098]
[1740091385972,2.1383651,656.8,655.96,1.12221098]
[1740091386170,2.1383651,656.8,655.98,0.30488734]
[1740091387478,2.1383651,656.79,655.98,0.30488734]
[1740091387887,2.1383651,656.79,656.06,1.12221098]
[1740091388278,2.1383651,656.79,656.07,0.30484551]
[1740091388982,2.1383651,656.78,656.07,0.30484551]
[1740091390584,2.1383651,656.77,656.07,0.30484551]
[1740091391885,1.892,656.89,656.07,0.30484551]
[1740091392281,2.13730707,656.88,656.07,0.30484551]
[1740091393989,2.13730707,656.87,656.07,0.30484551]
[1740091395487,2.13730707,656.86,656.07,0.30484551]
[1740091396888,5.05313597,656.85,656.07,0.30484551]
[1740091397089,2.9158289,656.84,656.07,0.30484551]
[1740091397290,2.91687586,656.83,656.07,0.30484551]
[1740091397490,2.13730707,656.85,656.07,0.30484551]
[1740091398189,2.13730707,656.85,656.07,1.42705649]
[1740091398392,2.91788878,656.84,656.07,1.42705649]
[1740091398584,2.91788878,656.83,656.07,1.42705649]
[1740091398884,2.91788878,656.82,656.07,1.42705649]
[1740091399087,2.91788878,656.81,656.07,1.42705649]
[1740091399291,2.91788878,656.8,656.07,1.42705649]
[1740091399491,2.91788878,656.79,656.07,1.42705649]
[1740091399692,2.91788878,656.78,656.07,1.42705649]
[1740091399893,2.91788878,656.77,656.07,1.42705649]
[1740091400086,1.725,656.9,656.07,1.42705649]
[1740091400286,2.91927593,656.89,656.07,1.42705649]
[1740091400492,2.91927593,656.88,656.12,1.12221098]
[1740091400687,5.06298338,656.87,656.13,0.30481764]
[1740091400890,2.91927593,656.86,656.13,0.30481764]
[1740091401092,2.14370745,656.87,656.13,0.30481764]
[1740091401388,2.92204216,656.86,656.13,0.30481764]
[1740091401590,2.92204216,656.85,656.13,0.30481764]
[1740091401789,2.92204216,656.84,656.13,0.30481764]
[1740091401990,5.06574961,656.83,656.13,0.30481764]
[1740091402193,2.92204216,656.82,656.13,0.30481764]
[1740091402395,2.92204216,656.81,656.13,0.30481764]
[1740091402596,2.92204216,656.8,656.13,0.30481764]
[1740091402797,2.14370745,656.83,656.13,0.30481764]
[1740091402997,2.92363817,656.82,656.13,0.30481764]
[1740091403198,2.14370745,656.83,656.13,0.30481764]
[1740091403397,2.92516211,656.82,656.13,0.30481764]
[1740091403595,2.92516211,656.81,656.13,0.30481764]
[1740091403799,5.06886956,656.8,656.13,0.30481764]
[1740091403995,2.14370745,656.8,656.13,0.30481764]
[1740091404199,2.92702782,656.79,656.13,0.30481764]
[1740091404396,2.92702782,656.78,656.13,0.30481764]
[1740091404601,2.14370745,656.8,656.13,0.30481764]
[1740091404798,2.92712731,656.79,656.13,0.30481764]
[1740091405008,2.14370745,656.8,656.13,0.30481764]
[1740091405298,2.14370745,656.78,656.13,0.30481764]
[1740091406704,2.14370745,656.77,656.13,0.30481764]
[1740091408605,3.373,657.1,656.13,0.30481764]
[1740091408807,5.09107808,657.09,656.13,0.30481764]
[1740091409006,2.15500089,657.09,656.13,0.30481764]
[1740091410810,5.09084431,657.08,656.13,0.30481764]
[1740091411011,2.93584342,657.07,656.13,0.30481764]
[1740091411211,2.15500089,657.08,656.13,0.30481764]
[1740091411407,2.93585168,657.07,656.13,0.30481764]
[1740091411606,2.15500089,657.08,656.13,0.30481764]
[1740091412111,2.93579265,657.07,656.13,0.30481764]
[1740091412308,2.93579265,657.06,656.13,0.30481764]
[1740091412503,2.93579265,657.05,656.13,0.30481764]
[1740091412806,2.15500089,657.06,656.13,0.30481764]
[1740091413003,2.93552328,657.05,656.13,0.30481764]
[1740091413205,2.15500089,657.06,656.13,0.30481764]
[1740091413409,2.93552675,657.05,656.13,0.30481764]
[1740091413611,2.93552675,657.04,656.13,0.30481764]
[1740091413809,2.93552675,657.03,656.13,0.30481764]
[1740091414013,2.93552675,657.02,656.13,0.30481764]
[1740091414312,2.93552675,657.01,656.13,0.30481764]
[1740091414612,2.93552675,657.0,656.13,0.30481764]
[1740091414807,2.93552675,656.99,656.13,0.30481764]
[1740091415014,2.93552675,656.98,656.34,1.12221098]
[1740091415214,5.09052764,656.97,656.35,0.30471547]
[1740091415415,2.93552675,656.96,656.35,0.30471547]
[1740091415715,2.93552675,656.95,656.35,0.30471547]
[1740091416015,2.93552675,656.94,656.35,0.30471547]
[1740091416215,2.15500089,656.97,656.35,0.30471547]
[1740091416416,2.93284014,656.96,656.35,0.30471547]
[1740091416614,2.93284014,656.95,656.35,0.30471547]
[1740091416813,2.93284014,656.94,656.35,0.30471547]
[1740091417014,2.15500089,656.94,656.35,0.30471547]
[1740091417512,2.93290086,656.93,656.35,0.30471547]
[1740091417816,2.93241713,656.92,656.35,0.30471547]
[1740091418016,2.15500089,656.94,656.35,0.30471547]
[1740091418316,2.93242193,656.93,656.35,0.30471547]
[1740091418516,2.93242193,656.92,656.35,0.30471547]
[1740091418716,2.699,657.1,656.35,0.30471547]
[1740091418914,2.93198915,657.09,656.35,0.30471547]
[1740091419117,2.93198915,657.08,656.35,0.30471547]
[1740091419318,2.93198915,657.07,656.35,0.30471547]
[1740091419519,2.93198915,657.06,656.35,0.30471547]
[1740091419719,2.93198915,657.05,656.35,0.30471547]
[1740091419914,2.93198915,657.04,656.35,0.30471547]